Cogmind - Beta 13 @@@ ROGUE MODE // 2024.07.01 @ 21:35:26 Player: JackZewap Result: Destroyed by KU-KXZ(R) with Subdweller Laser Performance ------------- Evolutions (0) 0 Regions Visited (2) 400 Robots Destroyed (16) 80 Value Destroyed (375) 375 Prototype IDs (0) 0 Alien Tech Used (0) 0 Bonus (0) 0 TOTAL SCORE: 855 Bonus ------- None Cogmind --------- Core Integrity 0/250 Matter 98/300 Energy 45/100 System Corruption 0% Temperature Cool (6) Movement Core (200) Ox3 Location -10/Subcaves Parts ------- > --- POWER (1) -------- (None) > --- PROPULSION (2) --- (None) > --- UTILITY (2) ------ (None) > --- WEAPON (2) ------- Subdweller Beam Cannon Battle Cannon > --- INVENTORY (5) ---- Structural Scanner Terrain Scanner Makeshift Light Armor Plating Mining Laser Peak State ------------ > --- POWER ------------ Ion Engine > --- PROPULSION ------- Light Treads Light Treads > --- UTILITY ---------- Structural Scanner Makeshift Light Armor Plating > --- WEAPON ----------- Battle Cannon Mining Laser > --- INVENTORY -------- Signal Interpreter Terrain Scanner Core Shielding Small Laser Assault Rifle [Rating: 11] Favorites ----------- Power Light Nuclear Core Engine Ion Engine Power Core Light Nuclear Core Propulsion Light Treads Treads Light Treads Utility Small Storage Unit Device Structural Scanner Storage Small Storage Unit Protection Makeshift Light Armor Plating Weapon Assault Rifle Energy Gun Small Laser Energy Cannon Subdweller Beam Cannon Ballistic Gun Assault Rifle Ballistic Cannon Battle Cannon Special Weapon Mining Laser Build | -11 -10 -10 ------- Run | Yrd Mat Sub Slots Evolved . | . . . Power . | . . . Propulsion . | . . . Utility . | . . . Weapon . | . . . Parts Attached 33 | 6 7 20 Power 4 | 1 1 2 Engine 3 | 1 . 2 Core 1 | . 1 . Reactor . | . . . Propulsion 3 | 2 1 . Treads 3 | 2 1 . Leg . | . . . Wheel . | . . . Hover . | . . . Flight . | . . . Utility 10 | 1 3 6 Device 4 | . 2 2 Storage 1 | 1 . . Processor . | . . . Hackware . | . . . Protection 5 | . 1 4 Artifact . | . . . Weapon 16 | 2 2 12 Energy Gun 3 | 1 . 2 Energy Cannon 1 | . . 1 Ballistic Gun 6 | 1 2 3 Ballistic Cannon 2 | . . 2 Launcher . | . . . Special Weapon 4 | . . 4 Impact Weapon . | . . . Slashing Weapon . | . . . Piercing Weapon . | . . . Special Melee Weapon . | . . . Unidentified Prototypes . | . . . Parts Lost 7 | . . 7 Power 1 | . . 1 Propulsion 2 | . . 2 Utility 2 | . . 2 Weapon 2 | . . 2 Highest Loss Streak 6 | . . 6 To Critical Strikes . | . . . Average Slot Usage (%) 93 | . 96 90 Engine 8 | . 4 12 Core 5 | . 9 1 Treads 25 | . 27 22 Device 8 | . 5 12 Storage 9 | . 14 4 Protection 7 | . 5 9 Energy Gun 4 | . 2 7 Ballistic Gun 18 | . 25 10 Ballistic Cannon 1 | . . 3 Special Weapon 2 | . . 4 Naked Turns 5 | . . 5 Heaviest Build 25 | 11 15 25 Greatest Support 40 | 40 40 40 Greatest Overweight (x) 5 | . . 5 Average Overweight (x) . | . . . Largest Inventory Capacity 8 | 8 8 8 Average Capacity 6 | 6 8 5 Most Carried 8 | . 7 8 Average Carried 4 | . 3 5 Final Capacity 8 | 8 8 5 Final Carried 7 | . 7 4 Class Distribution -------------------- 100% | Mutant Dominant Class ---------------- Mutant | -10/Materials Mutant | -10/Subcaves Resources | -11 -10 -10 ----------- Run | Yrd Mat Sub Matter Collected 663 | 255 190 218 Remotely . | . . . Salvage Created 525 | 47 251 227 Parts 42 | . 29 13 Haulers Intercepted 1 | . 1 . Recyclers Shooed . | . . . Parts Field Recycled . | . . . Retrieved Matter . | . . . Parts Self-Destructed 5 | . . 5 Prevented . | . . . Kills | -11 -10 -10 ------- Run | Yrd Mat Sub Combat Hostiles Destroyed 8 | . 2 6 Guns 6 | . 2 4 Cannons 2 | . . 2 Classes Destroyed 7 | 1 5 1 Builder 3 | . 3 . Tunneler 2 | . 2 . Hauler 1 | . 1 . Recycler 1 | 1 . . Watcher 1 | . 1 . Grunt 4 | . 2 2 Subdweller 4 | . . 4 Best Kill Streak 2 | 1 2 2 Combat Bots Only 2 | . 2 2 Max Kills in Single Turn 1 | 1 1 1 Gunslinging . | . . . Exploded . | . . . Melee . | . . . Uniques/NPCs Destroyed . | . . . Combat | -11 -10 -10 -------- Run | Yrd Mat Sub Hostile Shots Fired 78 | . 13 65 Missed 19 | . 3 16 Damage Taken 1528 | . 149 1379 Core 257 | . . 257 Absorbed by Shields . | . . . Core Remaining (%) 100 | 100 . . Volleys Fired 86 | . 25 61 Largest 2 | . 2 2 Hottest 139 | . 60 139 Shots Fired 136 | . 50 86 Gun 83 | . 50 33 Cannon 34 | . . 34 Launcher . | . . . Special 19 | . . 19 Kinetic 107 | . 47 60 Thermal 29 | . 3 26 Explosive . | . . . Electromagnetic . | . . . Robot Hit Streak 11 | . 5 11 Robot Miss Streak 3 | . 3 2 Penetration Max . | . . . Secondary Targets 1 | . . 1 Max Gunslinging Chain 1 | . . 1 Shots Hit Robots 70 | . 30 40 Core Hits 26 | . 12 14 Critical Kills 2 | . 2 . Critical Parts Destroyed . | . . . Critical Strikes 2 | . 2 . Destroy 2 | . 2 . Melee Attacks . | . . . Impact . | . . . Slashing . | . . . Piercing . | . . . Sneak Attacks . | . . . Combat Hostiles . | . . . Follow-up Attacks . | . . . Damage Inflicted 1106 | 5 387 714 Guns 673 | . 387 286 Cannons 428 | . . 428 Explosions . | . . . Melee . | . . . Ramming 5 | 5 . . Kinetic 895 | . 377 518 Thermal 206 | . 10 196 Explosive . | . . . Electromagnetic . | . . . Impact . | . . . Slashing . | . . . Piercing . | . . . Highest Corruption . | . . . Average Corruption . | . . . Corruption Purged . | . . . Corruption Blocked . | . . . Overload Shots . | . . . Overflow Damage . | . . . Projectiles . | . . . Explosions . | . . . Melee . | . . . Knockbacks 3 | . . 3 Impact . | . . . Kinetic 3 | . . 3 Secondary . | . . . Self-Inflicted Damage . | . . . Shots . | . . . Rammed 1 | 1 . . Targets Rammed 2 | 2 . . Kicked . | . . . Crushed 1 | 1 . . Highest Temperature 2 | . 2 . Average Temperature 2 | . 2 . Received Heat Transfer 408 | . 84 324 Siege Activations . | . . . Robots Corrupted . | . . . Combat Hostiles . | . . . Parts Fried . | . . . Impact Corruptions . | . . . Robots Melted . | . . . Combat Hostiles . | . . . Parts Melted 1 | . . 1 Heat Transferred 284 | . 25 259 Parts Sabotaged . | . . . Parts Stolen . | . . . Parts Stripped . | . . . Power Chain Reactions . | . . . Alert | -11 -10 -10 ------- Run | Yrd Mat Sub Peak Influence 136 | 5 136 . Initial 3 | . 3 . Average 18 | . 19 . Maximum Alert Level . | . . . Low Security (%) 100 | 100 100 . Level 1 . | . . . Level 2 . | . . . Level 3 . | . . . Level 4 . | . . . Level 5 . | . . . High Security . | . . . Max Security . | . . . Squads Dispatched . | . . . Investigation . | . . . Extermination . | . . . Reinforcement . | . . . Assault . | . . . Garrison . | . . . Intercept . | . . . Searches Triggered . | . . . Construction Impeded . | . . . Haulers Reinforced . | . . . Active Scanning Responses . | . . . Cargo Convoy Interrupts . | . . . Stealth | -11 -10 -10 --------- Run | Yrd Mat Sub Distress Signals . | . . . Communications Jammed . | . . . Distress Signals . | . . . Times Spotted 18 | . 9 9 Peak Tracking Total 4 | . 3 4 Tactical Retreats . | . . . Traps | -11 -10 -10 ------- Run | Yrd Mat Sub Traps Triggered 1 | . 1 . Indirectly . | . . . Trap Hack Attempts . | . . . Triggered . | . . . Disarmed . | . . . Reprogrammed . | . . . Reused . | . . . Traps Extracted . | . . . Installed . | . . . Triggered . | . . . Machines | -11 -10 -10 ---------- Run | Yrd Mat Sub Machines Disabled . | . . . Max in Single Turn . | . . . Machines Repaired . | . . . Machines Dismantled . | . . . Machines Sabotaged . | . . . Overloaded Fab Kills . | . . . Hacking | -11 -10 -10 --------- Run | Yrd Mat Sub Machines Accessed 3 | . 3 . Terminals 3 | . 3 . Fabricators . | . . . Repair Stations . | . . . Recycling Units . | . . . Scanalyzers . | . . . Garrison Access . | . . . Total Hacks 8 | . 8 . Successful 4 | . 4 . Failed 4 | . 4 . Catastrophic 1 | . 1 . Database Lockouts . | . . . Manual 7 | . 7 . Terminals 8 | . 8 . Fabricators . | . . . Repair Stations . | . . . Recycling Units . | . . . Scanalyzers . | . . . Garrison Access . | . . . Terminal Hacks 1 | . 1 . Robot Analysis 1 | . 1 . Fabricator Hacks . | . . . Repair Station Hacks . | . . . Recycling Unit Hacks . | . . . Scanalyzer . | . . . Garrison Access Hacks . | . . . Unauthorized Hacks 3 | . 3 . Terminals 3 | . 3 . Botnet 3 | . 3 . Fabricators . | . . . Repair Stations . | . . . Recycling Units . | . . . Scanalyzers . | . . . Garrison Access . | . . . Data Cores Recovered . | . . . Used . | . . . Hacking Detections 3 | . 3 . Full Trace Events . | . . . Feedback Events . | . . . Feedback Blocked . | . . . Robot Schematics Acquired . | . . . Robots Built . | . . . Authchips . | . . . Time . | . . . Total Robot Build Rating . | . . . Part Schematics Acquired . | . . . Parts Built . | . . . Authchips . | . . . Time . | . . . Total Part Build Rating . | . . . Parts Repaired . | . . . Time . | . . . Parts Recycled . | . . . Recycled Matter . | . . . Retrieved Matter . | . . . Retrieved Components . | . . . Parts Scanalyzed . | . . . Part Schematics Acquired . | . . . Parts Damaged . | . . . Bothacking | -11 -10 -10 ------------ Run | Yrd Mat Sub Used RIF Installer . | . . . Robots Hacked . | . . . Non-combat . | . . . Combat . | . . . Robot Hacks Applied . | . . . Relay Couplers Released . | . . . Fabnet Peak Effective % . | . . . Robots Rewired . | . . . Allies Hacked . | . . . Hacks Repelled . | . . . Allies | -11 -10 -10 -------- Run | Yrd Mat Sub Total Allies . | . . . Largest Group . | . . . Highest-Rated Group . | . . . Highest-Rated Ally . | . . . Total Orders . | . . . Ally Attacks . | . . . Total Damage . | . . . Kills . | . . . Allies Corrupted . | . . . Allies Melted . | . . . Intel | -11 -10 -10 ------- Run | Yrd Mat Sub Robot Analysis Total 1 | . 1 . Derelict Logs Recovered 1 | . . 1 Drone Launches . | . . . Drone Recoveries . | . . . Exploration | -11 -10 -10 ------------- Run | Yrd Mat Sub Turns Passed 1978 | 58 1012 908 Spaces Moved 831 | 35 377 419 Core 28 | 8 . 20 Treads 803 | 27 377 399 Legs . | . . . Wheels . | . . . Hover . | . . . Flight . | . . . Fastest Speed 50 | 50 160 50 Average Speed 158 | 134 160 158 Slowest Speed 300 | 160 160 300 Overloaded Moves . | . . . Propulsion Burnouts . | . . . Robots Hopped . | . . . Cave-ins Triggered 2 | . . 2 Exploration Rate (%) 31 | 3 53 39 Regions Visited 2 Branch Regions 1 Pre-discovered Areas . | . . . Known Exits Taken . | . . . Unknown Exits Taken 2 | 1 1 . Scrap Searched . | . . . Spaces Dug . | . . . Terrain Destroyed 1 | . . 1 Melee . | . . . Projectile 1 | . . 1 AOE . | . . . Terrain Rammed . | . . . Walls Destroyed . | . . . Machines Disabled . | . . . Actions | -11 -10 -10 --------- Run | Yrd Mat Sub Total 1313 | 42 734 537 Wait 342 | . 319 23 Move 829 | 34 376 419 Hop . | . . . Pick Up 7 | . 4 3 Fast Attach 15 | 6 5 4 Attach 4 | . 1 3 Detach 6 | . 3 3 Swap 14 | . 1 13 Drop 8 | . . 8 Fire 86 | . 25 61 Melee . | . . . Ram . | . . . Kick . | . . . Crush 2 | 2 . . Escape Stasis . | . . . Rewire . | . . . Trap . | . . . Miscellaneous . | . . . Route ------- -11/Scrapyard -10/Materials (discovered 2 exits: [*Min] / [*Sub]) -10/Subcaves History --------- Turn | Location | Event 12 | -11/Scrapyard | Discovered new exit (range 16) 59 | -11/Scrapyard | Entered Materials 302 | -10/Materials | Build established: Mutant 499 | -10/Materials | Discovered new exit (range 12) 869 | -10/Materials | Discovered new exit (range 8) 1071 | -10/Materials | Entered Subcaves 1323 | -10/Subcaves | Shifting Twisted Machinery released Battle Cannon 1323 | -10/Subcaves | Shifting Twisted Machinery released Mak. Light Armor Plating 1380 | -10/Subcaves | A swath of the cavern ceiling suddenly collapsed 1550 | -10/Subcaves | Learned 2 Materials zone layouts 1644 | -10/Subcaves | Disturbed a concealed Subdweller 1918 | -10/Subcaves | Ambushed by Subdweller buried in earth 1918 | -10/Subcaves | Ambushed by Subdweller buried in earth 1958 | -10/Subcaves | Crushed by falling debris 1958 | -10/Subcaves | Core integrity fell below 50% 1968 | -10/Subcaves | Crushed by falling debris 1968 | -10/Subcaves | Core integrity fell below 20% 1979 | -10/Subcaves | Destroyed by KU-KXZ(R) with Subdweller Laser Last Messages --------------- 01919_ RP-IH9(R): "SLEEPOVER!" 01919_ KU-KXZ(R): "ARGHSUB!" 01922_ Lgt. Treads destroyed. 01923_ K8-ZL7(R) destroyed. 01924_ Sml. Laser destroyed. 01926_ Ion Engine destroyed. 01938_ Acquired Scrap Shield. 01944_ JR-92K(R) destroyed. 01948_ Acquired Sub. Beam Cannon. 01953_ Scrap Shield destroyed. 01958_ The unstable cave ceiling collapses. 01958_ Crushed by falling debris. 01960_ Destroyed Scrap Shield. 01963_ RP-IH9(R) knocked back. 01966_ Sub. Power Source melted. 01966_ RP-IH9(R) destroyed. 01968_ The unstable cave ceiling collapses. 01968_ Crushed by falling debris. 01974_ KU-KXZ(R) knocked back. 01978_ Destroyed Scrap Shield. Map ----- +----------------------------------------------------+ | ????????####### #####?????????????????????????? | | ???????????#### ######?????????????????????????? | | ????????????## #####??????????????????????????? | | ????????????## ### ##??????????????????????????? | | ????????????## ## ##??????????????????????????? | | ????????????### # ##??????????????????????????? | | ????????????### ##??????????????????????????? | | ?????????????## ######??????????????????????? | | ????????????### #######?????????????????????? | | ????????????### ###?????????????????????? | | ???????????### ##?????????????????????? | | ??????????#### ###?????????????????????? | | ?????????#### ###?????????????????????? | | ????????#### ## ###?????????????????????? | | ????????### ### ##?????????????????????? | | ????????## ## ##?????????????????????? | | ????????## ## ###????????????????????? | | ????????### ### ###???????????????????? | | ????????### ### # ???????????????????? | | ????????# #;#; ####???????????????????? | | ????????# ; ;;####???????????????????? | | ????????#" ;###????????????????????? | | ????????# %% ; ###???????????????????? | | ????????# ##???????????????????? | | ????????## R ##???????????????????? | | ????????# %@% ##??????????????#????? | | ????????# ; ; ### #????????????????? | | ????????# ;; ;###;; ##???????????#?##? | | ????????##"; ##;""###% #???????????????# | | ?????????## #######&% ## #??????????# | | ??????????## #### & #?? #???????????# | | ??????????## #?? #???????????# | | ??????????### #??? ?????? ?#?# | | ??????????#### ####???? ?????????# | | ???????????#### ##???????? ??????????## | | ??????????????### #?????????? ?????????#### | | ????????????????## ?????????????????#####" | | ?????????????????# ???????????????####" | | ?????????????????# ## ???????#??#?#?## " " | | ????????????????? ####? #??????????#??### | | ????????????????? ##????? #????????????### | | ???????????????? #??????? ?????????????## | | ???????????????? ??????? ????????????### "# | | ???????????????# ?????????????????????? ###"# | | ????????????????# ##????????????????????? ###" | | ????????????????## #???????????????????????####" | | ?????????????????? ?????????????????????#???#### | | ????????????????????????????????????????????????## | | ????????????????????????????????????????????????#? | | ?????????????????????????????????????????????????? | +----------------------------------------------------+ Best States ------------- Heat Dissipation 25 Energy Generation 15 Energy Capacity 250 Matter Stores 300 Matter Capacity 300 Sight Range 16 Terrain Scan Range 14 Terrain Scan Density 10 Armor Coverage 800 Core Shielding 20 Evasion (%) 50 Recoil Reduction 2 Item Schematics ----------------- None Robot Schematics ------------------ None Fabricated ------------ Nothing Alien Tech Used ----------------- None Achievements -------------- None Challenges ------------ None Game ------ Seed NeutronLayeredTrap Manual? 0 Play Time 00:09:51 Cumulative 107.2 hours Start 2024.07.01 @ 21:26:19 End 2024.07.01 @ 21:35:26 Sessions 1 Manual Loads 0 Difficulty Rogue Special Mode None Game No. 127 Rogue 121 Adventurer 6 Explorer 0 Win Type - Total 1 Types 1/0/0/0/0/0/0/0/0 Lore% 37 Gallery% 59 Achievement% 42 Wizard Run 0 Options --------- Layout 0 ASCII 0 Keyboard 1 Movement Numpad Keybinds 0 Fullscreen 0 Font 14/Smallcaps Map View 76x50 Zoom Use 0% Tactical HUD 1 Map Filters NONE Filters NONE Steam 1 RUN: f1221447-5f74-4dcf-8d28-efd7bad653bb